Cogmind - Beta 16.1 @@@ ROGUE MODE // 2026.04.14 @ 17:42:28 Player: Clog Result: Destroyed by X-57 Shotgunner with High-powered Shotgun Performance ------------- Evolutions (2) 1000 Regions Visited (7) 1400 Robots Destroyed (85) 425 Value Destroyed (1882) 1882 Prototype IDs (25) 500 Alien Tech Used (0) 0 Bonus (370) 370 TOTAL SCORE: 5577 Bonus ------- Follower Combat Kills 70 Aligned with FarCom 300 Cogmind --------- Core Integrity 0/550 Matter 240/300 Energy 100/100 System Corruption 10% Temperature Cool (0) Movement Core (400) Ox7 Location -8/Materials Parts ------- > --- POWER (1) -------- (None) > --- PROPULSION (3) --- (None) > --- UTILITY (4) ------ Large Storage Unit > --- WEAPON (3) ------- Ripper > --- INVENTORY (15) --- Hover Unit Hover Unit Recoil Stabilizer Hacking Suite Heavy Assault Rifle Improved Assault Rifle Improved Assault Rifle Improved Assault Rifle Peak State ------------ > --- POWER ------------ Light Nuclear Core > --- PROPULSION ------- Light Treads Light Treads > --- UTILITY ---------- Large Storage Unit Recoil Stabilizer Recoil Stabilizer Hardened Medium Armor Plating > --- WEAPON ----------- Assault Rifle Improved Light Cannon Improved Light Cannon > --- INVENTORY -------- Light Nuclear Core Hover Unit Hover Unit Improved Hover Unit Improved Hover Unit Experimental Sensor Array Recoil Stabilizer Hacking Suite Guided Plasma Cannon Heavy Assault Rifle Minigun Minigun Minigun Minigun Ripper [Rating: 25] Favorites ----------- Power Improved Ion Engine Engine Improved Ion Engine Power Core Light Nuclear Core Propulsion Light Treads Treads Light Treads Hover Unit Hover Unit Utility Seismic Detector Device Seismic Detector Storage Medium Storage Unit Protection Medium Armor Plating Weapon Heavy Assault Rifle Energy Gun Particle Gun Energy Cannon Guided Plasma Cannon Ballistic Gun Heavy Assault Rifle Ballistic Cannon Improved Light Cannon Slashing Weapon Ripper Build | -11 -10 -10 -9 -9 -9 -8 -8 ------- Run | Yrd Mat Min Mat Min Exi Min Mat Slots Evolved 4 | . . . 2 . . . 2 Power . | . . . . . . . . Propulsion 1 | . . . 1 . . . . Utility 2 | . . . 1 . . . 1 Weapon 1 | . . . . . . . 1 Parts Attached 51 | 8 3 5 6 2 1 5 21 Power 7 | 1 1 1 1 . . 1 2 Engine 5 | 1 1 1 1 . . . 1 Core 2 | . . . . . . 1 1 Reactor . | . . . . . . . . Propulsion 16 | 2 1 1 2 . . . 10 Treads 11 | 2 1 1 2 . . . 5 Leg . | . . . . . . . . Wheel . | . . . . . . . . Hover 5 | . . . . . . . 5 Flight . | . . . . . . . . Utility 14 | 3 1 1 2 1 1 2 3 Device 7 | 2 . . 1 . . 1 3 Storage 3 | 1 1 . . . 1 . . Processor . | . . . . . . . . Hackware . | . . . . . . . . Protection 4 | . . 1 1 1 . 1 . Artifact . | . . . . . . . . Weapon 14 | 2 . 2 1 1 . 2 6 Energy Gun 2 | . . . . . . 1 1 Energy Cannon 1 | . . . . . . . 1 Ballistic Gun 7 | 2 . 2 1 . . 1 1 Ballistic Cannon 3 | . . . . 1 . . 2 Launcher . | . . . . . . . . Special Weapon . | . . . . . . . . Impact Weapon . | . . . . . . . . Slashing Weapon 1 | . . . . . . . 1 Piercing Weapon . | . . . . . . . . Special Melee Weapon . | . . . . . . . . Unidentified Prototypes 1 | . . . . . . . 1 Parts Lost 30 | . 2 1 2 3 . 4 18 Power 6 | . 1 1 . . . 1 3 Propulsion 10 | . 1 . 1 1 . . 7 Utility 7 | . . . . 1 . 1 5 Weapon 7 | . . . 1 1 . 2 3 Highest Loss Streak 11 | . 1 1 1 1 . 3 11 To Critical Strikes 1 | . . . . . . . 1 Average Backups 9 | 2 4 8 8 9 10 10 13 Power 1 | . . 1 1 1 1 1 . Propulsion 3 | 1 2 1 1 3 4 4 4 Utility 2 | . 1 3 4 3 3 2 2 Weapon 2 | . . 1 1 1 2 2 5 Tool/Special . | . . . . . . . . Unused Backups 16 | . . 2 1 . 1 1 11 Power . | . . . . . . . . Propulsion 2 | . . 2 . . . . . Utility 4 | . . . 1 . . 1 2 Weapon 10 | . . . . . 1 . 9 Tool/Special . | . . . . . . . . Average Slot Usage (%) 87 | . 89 98 87 92 88 86 75 Engine 8 | . 13 13 11 11 11 1 2 Core 2 | . . . . . . 9 3 Treads 23 | . 25 28 24 26 22 22 18 Device 10 | . 14 5 5 11 11 17 11 Storage 11 | . 14 14 11 11 11 11 9 Protection 7 | . . 8 13 10 11 4 3 Ballistic Gun 15 | . 21 27 21 14 11 10 8 Ballistic Cannon 7 | . . . . 7 11 9 14 Peak Build Rating 25 | 9 8 11 20 15 14 16 25 Average Rating 14 | 5 6 9 13 13 13 14 20 On Entrance 10 | . 7 7 11 15 13 14 16 Avg Prop Armor Cover (%) 7 | . . . . . . . 7 Naked Turns . | . . . . . . . . Heaviest Build 45 | 12 17 22 33 31 41 41 45 Greatest Support 62 | 40 40 40 60 60 40 40 62 Greatest Overweight (x) 13 | . 1 . . . 1 1 13 Average Overweight (x) . | . . . . . . . . Largest Inventory Capacity 15 | 8 10 10 10 10 15 15 15 Average Capacity 11 | 7 8 10 10 10 10 15 15 Most Carried 15 | 5 8 10 10 10 10 12 15 Average Carried 9 | 3 4 9 8 9 10 10 13 Final Capacity 15 | 8 10 10 10 10 15 15 15 Final Carried 10 | 4 7 10 8 10 10 10 8 Class Distribution -------------------- 59% | Scavenger-Mutant 16% | Mutant 13% | Skirmisher 10% | Scavenger-Skirmisher Dominant Class ---------------- Mutant | -10/Materials Scavenger-Mutant | -10/Mines Scavenger-Mutant | -9/Materials Scavenger-Mutant | -9/Mines Scavenger-Mutant | -9/Exiles Scavenger-Mutant | -8/Mines Skirmisher | -8/Materials Resources | -11 -10 -10 -9 -9 -9 -8 -8 ----------- Run | Yrd Mat Min Mat Min Exi Min Mat Matter Collected 2055 | 278 195 115 198 101 . 204 964 Remotely . | . . . . . . . . Salvage Created 2512 | 105 292 191 394 119 . 209 1202 Parts 174 | 8 12 15 33 16 . 13 77 Haulers Intercepted 7 | . 2 . . . . . 5 Recyclers Shooed 4 | . 1 1 . . . . 2 Parts Field Recycled . | . . . . . . . . Retrieved Matter . | . . . . . . . . Parts Self-Destructed . | . . . . . . . . Prevented . | . . . . . . . . Parts Restored . | . . . . . . . . Kills | -11 -10 -10 -9 -9 -9 -8 -8 ------- Run | Yrd Mat Min Mat Min Exi Min Mat Combat Hostiles Destroyed 58 | . 3 4 12 7 . 8 24 Guns 41 | . 3 4 12 3 . 4 15 Cannons 16 | . . . . 4 . 4 8 Classes Destroyed 11 | 2 3 1 2 . . 1 2 Worker 5 | . . . 1 . . . 4 Builder 2 | . . . . . . . 2 Tunneler 3 | 2 . 1 . . . . . Hauler 7 | . 2 . . . . . 5 Recycler 5 | 1 1 . . . . . 3 Watcher 5 | . 1 . 1 . . . 3 Swarmer 25 | . . . 6 6 . 4 9 Grunt 22 | . 3 2 3 1 . 3 10 Brawler 1 | . . . . . . . 1 Sentry 9 | . . 2 3 . . . 4 Hunter 1 | . . . . . . 1 . Best Kill Streak 6 | 1 4 2 5 4 . 3 6 Combat Bots Only 5 | . 2 2 4 4 . 3 5 Max Kills in Single Turn 2 | 1 1 1 2 1 . 1 1 Gunslinging 1 | . . . 1 . . . . Exploded . | . . . . . . . . Melee . | . . . . . . . . Uniques/NPCs Destroyed . | . . . . . . . . Combat | -11 -10 -10 -9 -9 -9 -8 -8 -------- Run | Yrd Mat Min Mat Min Exi Min Mat Hostile Shots Fired 489 | . 40 34 55 45 . 64 251 Missed 158 | . 14 12 19 14 . 11 88 Hits 331 | . 26 22 36 31 . 53 163 Melee 14 | . . . . . . . 14 Projectile 317 | . 26 22 36 31 . 53 149 Critical Strikes 15 | . 1 . . . . 1 13 Damage Taken 4557 | . 397 324 430 267 . 690 2449 Core 847 | . 71 . 41 30 . 149 556 Absorbed by Shields . | . . . . . . . . Core Remaining (%) 72 | 100 . 71 . . . 45 . Volleys Fired 217 | 13 39 15 24 16 . 30 80 Largest 3 | 2 2 2 2 2 . 2 3 Hottest 148 | 40 40 46 46 53 . 85 148 Shots Fired 459 | 26 43 30 46 31 . 57 226 Gun 296 | 26 43 30 46 23 . 39 89 Cannon 163 | . . . . 8 . 18 137 Launcher . | . . . . . . . . Special . | . . . . . . . . Kinetic 432 | 26 43 30 46 31 . 47 209 Thermal 27 | . . . . . . 10 17 Explosive . | . . . . . . . . Electromagnetic . | . . . . . . . . Robot Hit Streak 13 | 3 13 13 8 4 . 3 12 Robot Miss Streak 5 | 4 1 1 2 4 . 5 5 Penetration Max . | . . . . . . . . Secondary Targets 3 | . . . 1 1 . . 1 Max Gunslinging Chain 1 | . . . 1 1 . . 1 Shots Hit Robots 276 | 13 37 24 30 15 . 25 132 Core Hits 128 | 5 13 10 20 9 . 12 59 Critical Kills . | . . . . . . . . Critical Parts Destroyed 2 | . 1 . . 1 . . . Critical Strikes 6 | . 1 . . 1 . . 4 Destroy 2 | . 1 . . 1 . . . Blast 3 | . . . . . . . 3 Sever 1 | . . . . . . . 1 Melee Attacks 5 | . . . . . . . 5 Impact . | . . . . . . . . Slashing 5 | . . . . . . . 5 Piercing . | . . . . . . . . Sneak Attacks . | . . . . . . . . Combat Hostiles . | . . . . . . . . Follow-up Attacks . | . . . . . . . . Damage Inflicted 4599 | 150 321 310 485 262 . 402 2669 Guns 2582 | 150 319 292 485 167 . 223 946 Cannons 1834 | . . . . 88 . 179 1567 Explosions . | . . . . . . . . Melee 80 | . . . . . . . 80 Ramming 103 | . 2 18 . 7 . . 76 Kinetic 4073 | 150 319 292 485 255 . 321 2251 Thermal 343 | . . . . . . 81 262 Explosive . | . . . . . . . . Electromagnetic . | . . . . . . . . Impact . | . . . . . . . . Slashing 80 | . . . . . . . 80 Piercing . | . . . . . . . . Highest Corruption 10 | . . . . . . . 10 Average Corruption 8 | . . . . . . . 8 Corruption Purged . | . . . . . . . . Corruption Blocked . | . . . . . . . . Effects 48 | . . . . . . . 48 Message Errors 9 | . . . . . . . 9 Matter Fused 12 | . . . . . . . 12 Heat Flow Errors 7 | . . . . . . . 7 Energy Discharges 2 | . . . . . . . 2 Parts Fused 1 | . . . . . . . 1 Data Loss (minor) 6 | . . . . . . . 6 Data Loss (major) 2 | . . . . . . . 2 Misfires 3 | . . . . . . . 3 Alerts 2 | . . . . . . . 2 Misdirections 1 | . . . . . . . 1 Weapon Failures 3 | . . . . . . . 3 Overload Shots . | . . . . . . . . Overflow Damage 18 | . . . . . . . 18 Projectiles 18 | . . . . . . . 18 Explosions . | . . . . . . . . Melee . | . . . . . . . . Knockbacks 20 | . . . . . . 1 19 Impact . | . . . . . . . . Kinetic 18 | . . . . . . 1 17 Secondary 2 | . . . . . . . 2 Self-Inflicted Damage 13 | . . . . . . . 13 Shots . | . . . . . . . . Rammed 14 | . 1 5 . 2 . . 6 Targets Rammed 17 | . 2 6 . 2 . . 7 Kicked . | . . . . . . . . Crushed 3 | . 1 1 . . . . 1 Highest Temperature 412 | . 27 31 7 5 . 324 412 Average Temperature 93 | . 9 15 4 3 . 116 100 Received Heat Transfer 1281 | . 216 105 135 24 . 234 567 Effects 4 | . . . . . . . 4 Shutdowns 1 | . . . . . . . 1 Interference 3 | . . . . . . . 3 Siege Activations . | . . . . . . . . Martial Activations . | . . . . . . . . Shielding Activations . | . . . . . . . . Robots Disrupted . | . . . . . . . . Combat Hostiles . | . . . . . . . . Robots Corrupted 1 | . . . . . . . 1 Combat Hostiles 1 | . . . . . . . 1 Parts Fried 1 | . . . . . . . 1 Impact Corruptions 1 | . . . . . . . 1 Robots Melted . | . . . . . . . . Combat Hostiles . | . . . . . . . . Parts Melted 1 | . . . . . . . 1 Heat Transferred 789 | . . . . . . 185 604 Parts Sabotaged . | . . . . . . . . Parts Stolen . | . . . . . . . . Parts Stripped . | . . . . . . . . Power Chain Reactions . | . . . . . . . . Alert | -11 -10 -10 -9 -9 -9 -8 -8 ------- Run | Yrd Mat Min Mat Min Exi Min Mat Maximum Alert Level 1 | . . . . . . . 1 Low Security (%) 89 | 100 100 100 100 100 . 100 64 Level 1 10 | . . . . . . . 35 Level 2 . | . . . . . . . . Level 3 . | . . . . . . . . Level 4 . | . . . . . . . . Level 5 . | . . . . . . . . High Security . | . . . . . . . . Max Security . | . . . . . . . . Peak Influence 327 | 5 52 50 132 102 . 71 327 Initial 40 | . . 6 . 40 . . 14 Average 44 | . 9 5 42 29 . 14 108 Influence Increases 1900 | 15 107 95 333 347 . 205 798 Destroy 0b10 Robot/C 1280 | . 60 80 240 260 . 160 480 Destroy 0b10 Robot/NC 135 | 15 20 5 10 . . . 85 Destroy Leader 274 | . 16 10 62 40 . 30 116 Allied During Kill 32 | . . . . 32 . . . Successful Hack 45 | . 11 . 6 . . . 28 Destroy Structure 14 | . . . . . . . 14 Partial Spotted 15 | . . . 15 . . . . Lose Combat Pursuer 105 | . . . . 15 . 15 75 Influence Decreases 1640 | 15 89 113 227 453 . 166 577 Entered New Map 103 | . . 12 . 66 . . 25 Time Decay 1257 | 15 82 101 207 337 . 126 389 Lost Part 260 | . 7 . 20 30 . 40 163 Lost Ally 20 | . . . . 20 . . . Squads Dispatched 3 | . . . 1 . . . 2 Investigation 1 | . . . 1 . . . . Extermination . | . . . . . . . . Reinforcement 2 | . . . . . . . 2 Assault . | . . . . . . . . Garrison . | . . . . . . . . Intercept . | . . . . . . . . Searches Triggered . | . . . . . . . . Construction Impeded . | . . . . . . . . Haulers Reinforced . | . . . . . . . . Active Scanning Responses . | . . . . . . . . Cargo Convoy Interrupts . | . . . . . . . . Stealth | -11 -10 -10 -9 -9 -9 -8 -8 --------- Run | Yrd Mat Min Mat Min Exi Min Mat Distress Signals 9 | . 1 . 1 . . . 7 Communications Jammed . | . . . . . . . . Distress Signals . | . . . . . . . . Times Spotted 99 | . 5 4 18 12 . 9 51 Peak Tracking Total 9 | . 5 2 6 4 . 4 9 Tactical Retreats 7 | . . . . 1 . 1 5 Traps | -11 -10 -10 -9 -9 -9 -8 -8 ------- Run | Yrd Mat Min Mat Min Exi Min Mat Traps Triggered 9 | . 5 . 1 . . . 3 Indirectly . | . . . . . . . . Trap Hack Attempts . | . . . . . . . . Triggered . | . . . . . . . . Disarmed . | . . . . . . . . Reprogrammed . | . . . . . . . . Reused . | . . . . . . . . Traps Extracted . | . . . . . . . . Installed . | . . . . . . . . Triggered . | . . . . . . . . Machines | -11 -10 -10 -9 -9 -9 -8 -8 ---------- Run | Yrd Mat Min Mat Min Exi Min Mat Machines Disabled . | . . . . . . . . Max in Single Turn . | . . . . . . . . Machines Repaired . | . . . . . . . . Machines Dismantled . | . . . . . . . . Machines Sabotaged . | . . . . . . . . Overloaded Fab Kills . | . . . . . . . . Hacking | -11 -10 -10 -9 -9 -9 -8 -8 --------- Run | Yrd Mat Min Mat Min Exi Min Mat Machines Accessed 13 | . 3 . 4 . 1 . 5 Terminals 10 | . 3 . 2 . . . 5 Fabricators . | . . . . . . . . Repair Stations . | . . . . . . . . Recycling Units . | . . . . . . . . Scanalyzers 2 | . . . 2 . . . . Garrison Access . | . . . . . . . . Total Hacks 31 | . 7 . 13 . 1 . 10 Successful 14 | . 2 . 6 . 1 . 5 Failed 16 | . 5 . 6 . . . 5 Catastrophic 3 | . . . 1 . . . 2 Database Lockouts 1 | . . . 1 . . . . Manual 23 | . 7 . 5 . 1 . 10 Terminals 22 | . 7 . 5 . . . 10 Fabricators . | . . . . . . . . Repair Stations . | . . . . . . . . Recycling Units . | . . . . . . . . Scanalyzers 8 | . . . 8 . . . . Garrison Access . | . . . . . . . . Terminal Hacks 9 | . 1 . 2 . 1 . 5 Branch Access Points 1 | . . . . . . . 1 Alert Level 1 | . . . 1 . . . . Transport Status 3 | . . . . . . . 3 Hauler Manifests 3 | . 1 . 1 . . . 1 Proto ID Catalog 1 | . . . . . 1 . . Fabricator Hacks . | . . . . . . . . Repair Station Hacks . | . . . . . . . . Recycling Unit Hacks . | . . . . . . . . Scanalyzer 4 | . . . 4 . . . . Insert Component 1 | . . . 1 . . . . Analyze 2 | . . . 2 . . . . Retrieve Study 1 | . . . 1 . . . . Garrison Access Hacks . | . . . . . . . . Unauthorized Hacks 1 | . 1 . . . . . . Terminals 1 | . 1 . . . . . . Botnet 1 | . 1 . . . . . . Fabricators . | . . . . . . . . Repair Stations . | . . . . . . . . Recycling Units . | . . . . . . . . Scanalyzers . | . . . . . . . . Garrison Access . | . . . . . . . . Data Cores Recovered 1 | . . . 1 . . . . Used . | . . . . . . . . Hacking Detections 9 | . 3 . 3 . . . 3 Full Trace Events 1 | . 1 . . . . . . Feedback Events . | . . . . . . . . Feedback Blocked . | . . . . . . . . Robot Schematics Acquired . | . . . . . . . . Robots Built . | . . . . . . . . Authchips . | . . . . . . . . Time . | . . . . . . . . Total Robot Build Rating . | . . . . . . . . Part Schematics Acquired . | . . . . . . . . Parts Built . | . . . . . . . . Authchips . | . . . . . . . . Time . | . . . . . . . . Total Part Build Rating . | . . . . . . . . Part Studies Acquired 1 | . . . 1 . . . . Parts Repaired . | . . . . . . . . Time . | . . . . . . . . Parts Recycled . | . . . . . . . . Recycled Matter . | . . . . . . . . Retrieved Matter . | . . . . . . . . Retrieved Components . | . . . . . . . . Parts Scanalyzed 1 | . . . 1 . . . . Part Schematics Acquired . | . . . . . . . . Parts Damaged . | . . . . . . . . Bothacking | -11 -10 -10 -9 -9 -9 -8 -8 ------------ Run | Yrd Mat Min Mat Min Exi Min Mat Used RIF Installer . | . . . . . . . . Robots Hacked . | . . . . . . . . Non-combat . | . . . . . . . . Combat . | . . . . . . . . Robot Hacks Applied . | . . . . . . . . Relay Couplers Released . | . . . . . . . . Fabnet Peak Effective % . | . . . . . . . . Robots Rewired . | . . . . . . . . Allies Hacked . | . . . . . . . . Hacks Repelled . | . . . . . . . . Allies | -11 -10 -10 -9 -9 -9 -8 -8 -------- Run | Yrd Mat Min Mat Min Exi Min Mat Total Allies 3 | . . . . 3 . . . Largest Group 3 | . . . . 3 2 2 . Highest-Rated Group 40 | . . . . 40 24 24 . Highest-Rated Ally 16 | . . . . 16 16 16 . Total Orders . | . . . . . . . . Ally Attacks 45 | . . . . 38 . 7 . Total Damage 371 | . . . . 284 . 87 . Kills 6 | . . . . 6 . . . Allies Corrupted . | . . . . . . . . Allies Melted . | . . . . . . . . Intel | -11 -10 -10 -9 -9 -9 -8 -8 ------- Run | Yrd Mat Min Mat Min Exi Min Mat Active Infowar (turns) 3651 | 12 439 343 257 1010 703 688 199 Sensors 1 | . . . 1 . . . . Terrain 1 | 1 . . . . . . . Structural 98 | . . . . . . . 98 Seismic 3551 | 11 439 343 256 1010 703 688 101 Robot Analysis Total . | . . . . . . . . Derelict Logs Recovered 2 | . . 1 . 1 . . . Drone Launches . | . . . . . . . . Drone Recoveries . | . . . . . . . . Exploration | -11 -10 -10 -9 -9 -9 -8 -8 ------------- Run | Yrd Mat Min Mat Min Exi Min Mat Turns Passed 5907 | 191 446 890 499 1010 703 688 1480 Spaces Moved 3087 | 87 215 514 259 596 425 358 633 Core 18 | 3 6 . . . . . 9 Treads 3026 | 84 209 514 259 596 425 358 581 Legs . | . . . . . . . . Wheels . | . . . . . . . . Hover 43 | . . . . . . . 43 Flight . | . . . . . . . . Fastest Speed 50 | 50 100 160 160 160 160 160 112 Average Speed 165 | 156 158 160 160 160 165 165 179 Slowest Speed 700 | 160 160 160 160 160 240 240 700 Overloaded Moves . | . . . . . . . . Propulsion Burnouts . | . . . . . . . . Robots Hopped . | . . . . . . . . Potential Cave-ins . | . . . . . . . . Cave-ins Triggered . | . . . . . . . . Exploration Rate (%) 52 | 5 31 69 23 81 89 82 42 Regions Visited 7 Branch Regions 4 Pre-discovered Areas 3 | . . 2 . 1 . . . Known Exits Taken . | . . . . . . . . Unknown Exits Taken 7 | 1 1 1 1 1 1 1 . Scrap Searched 4 | . . 1 . 2 . 1 . Spaces Dug . | . . . . . . . . Terrain Destroyed 7 | . . . . . . . 7 Melee . | . . . . . . . . Projectile 7 | . . . . . . . 7 AOE . | . . . . . . . . Terrain Rammed . | . . . . . . . . Walls Destroyed . | . . . . . . . . Machines Disabled . | . . . . . . . . Actions | -11 -10 -10 -9 -9 -9 -8 -8 --------- Run | Yrd Mat Min Mat Min Exi Min Mat Total 3501 | 119 283 553 299 620 428 399 800 Wait 17 | . 7 . 1 . . . 9 Move 3080 | 86 214 513 258 595 424 357 633 Hop . | . . . . . . . . Pick Up 63 | 11 10 6 5 4 1 5 21 Fast Attach 13 | . 3 2 1 1 . . 6 Attach 50 | 8 6 3 6 1 . 5 21 Detach 13 | 1 . 3 1 . . 1 7 Swap 3 | . 1 . . . 1 . 1 Drop 23 | . 1 5 3 1 2 1 10 Fire 217 | 13 39 15 24 16 . 30 80 Melee 5 | . . . . . . . 5 Ram 2 | . . . . . . . 2 Kick . | . . . . . . . . Crush 15 | . 2 6 . 2 . . 5 Escape Stasis . | . . . . . . . . Rewire . | . . . . . . . . Trap . | . . . . . . . . Miscellaneous . | . . . . . . . . Route ------- -11/Scrapyard -10/Materials (discovered 2 exits: *Mat / [*Min]) -10/Mines -9/Materials -9/Mines (discovered 3 exits: *Mat x2 / *Exi) -9/Exiles (discovered 2 exits: [*Min x2]) -8/Mines -8/Materials (discovered 2 exits: [*Fac x2]) History --------- Turn | Location | Event 18 | -11/Scrapyard | Discovered new exit (range 15) 192 | -11/Scrapyard | Entered Materials 316 | -10/Materials | Build established: Mutant 325 | -10/Materials | Discovered new exit (range 16) 416 | -10/Materials | Discovered new exit (range 8) 638 | -10/Materials | Entered Mines 691 | -10/Mines | Found a Scrap Suit stashed away for nefarious purposes 694 | -10/Mines | Found Scrap Suit 867 | -10/Mines | Learned location of Zion (-6) 1122 | -10/Mines | Found a damaged Exp. Sensor Array with a note attached 1127 | -10/Mines | Found Prototype Device 1217 | -10/Mines | Assembled infested the area 1258 | -10/Mines | Build established: Scavenger-Mutant 1507 | -10/Mines | Discovered new exit (range 7) 1508 | -10/Mines | Learned location of Storage (-9) 1528 | -10/Mines | Entered Materials 1528 | -9/Materials | Evolved 2 slots: Propulsion x1, Utility x1 1552 | -9/Materials | Identified Exp. Sensor Array 1867 | -9/Materials | Central database locked down 1988 | -9/Materials | Discovered new exit (range 8) 2027 | -9/Materials | Entered Mines 2085 | -9/Mines | Met a Derelict bent on vengeance 2096 | -9/Mines | Assisted by bots powering up and referring to "LRC-V3" 2206 | -9/Mines | Found DCF Scrap (14 items) 2363 | -9/Mines | Discovered new exit (range 9) 2473 | -9/Mines | A weapon hastily lodged in a ceiling crevice suddenly fell to the ground 2484 | -9/Mines | Discovered new exit (range 8) 3030 | -9/Mines | Deemed a non-threat by the Exiles lab entrance 3030 | -9/Mines | Discovered new exit (range 5) 3037 | -9/Mines | Entered Exiles 3037 | -9/Exiles | Accompanied by 2 allies 3063 | -9/Exiles | Discovered new exit (range 14) 3105 | -9/Exiles | Met 8R-AWN 3130 | -9/Exiles | Met EX-HEX 3185 | -9/Exiles | Met EX-BIN 3205 | -9/Exiles | Aligned with FarCom system 3207 | -9/Exiles | Given EX-Vault access code 3247 | -9/Exiles | Opened EX-Vault 3260 | -9/Exiles | Found Gui. Plasma Cannon 3293 | -9/Exiles | Warned to stay clear of 0b10 Research branches 3341 | -9/Exiles | Met EX-DEC 3400 | -9/Exiles | Visited The Gauntlet 3716 | -9/Exiles | Discovered new exit (range 12) 3740 | -9/Exiles | Left Exiles lab with Gui. Plasma Cannon 3740 | -9/Exiles | Entered Mines 3740 | -8/Mines | Accompanied by 2 allies 3867 | -8/Mines | Lost 3 parts (1p1u1w) 4304 | -8/Mines | Core integrity fell below 50% 4414 | -8/Mines | Discovered new exit (range 8) 4428 | -8/Mines | Entered Materials 4428 | -8/Materials | Evolved 2 slots: Utility x1, Weapon x1 4563 | -8/Materials | Lost 3 parts (2n1u) 4750 | -8/Materials | Build established: Scavenger-Skirmisher 5218 | -8/Materials | System corruption reached 10% 5258 | -8/Materials | Build established: Skirmisher 5479 | -8/Materials | Discovered new exit (range 15) 5654 | -8/Materials | Discovered new exit (range 12) 5882 | -8/Materials | Core integrity fell below 50% 5892 | -8/Materials | Core integrity fell below 20% 5908 | -8/Materials | Destroyed by X-57 Shotgunner with High-powered Shotgun Last Messages --------------- 05885_ K-01 Serf destroyed. 05885_ S-10 Pest destroyed. 05886_ Lgt. Nuclear Core destroyed. 05886_ Adv. Treads severed. 05889_ X-57 Shotgunner destroyed. 05890_ Dropped Lgt. Treads. 05891_ Structural Scanner severed. 05893_ Airjet destroyed. 05894_ K-01 Serf collects debris. 05894_ Acquired 9 matter. 05895_ Imp. Hover Unit destroyed. 05898_ K-01 Serf collects debris. 05899_ Imp. Hover Unit destroyed. 05902_ System corrupted: Matter fused (-5). 05902_ K-01 Serf collects debris. 05902_ L-31 Rogue destroyed. 05906_ R-06 Scavenger collects Imp. Aluminum Leg. 05906_ Knocked back. 05907_ K-01 Serf collects debris. Map ----- +----------------------------------------------------+ | ########## # #???????????????????????? | | ?????????# ##? #???????????????????????? | | ?????????# ############???????????????????????? | | ?????????# #% #???????????????????????????? | | ???####### %+%* #???????????????????????????? | | ???# #* #???????????????????????????? | | ???+ # #???????????????????????????? | | ???# T # #???????????????????????????? | | ???### # #???????????????????????????? | | ?????# ########???????????????????????????? | | ?????# !!! #??????????????????????????????????? | | +##### !!! #??????????????????????????????????? | | !!! #??????????????????????????????????? | | #???????????????? # ???????????????? | | #???????????????? + ???????????????? | | +######"T"#####???????????????? # ???????????????? | | #"""#???????????????????? # ???????????????? | | !! #####??## ????? ???????? ##???????????????? | | !! #?????? # ??""""???????? ##???????????????? | | ! #?????? # """""???????? ##???????????????? | | #????????? """""???????? ##???????????????? | | #?????????? """ ???????? ##???????????????? | | #???????? #?????? ##???????????????? | | #? #####+########## ##???????????????? | | #######?#####+### ######## ##???????????????? | | ########## w @%g% =##???????????????? | | ########## !%% %/[*%##???????????????? | | k r%*x=%=##???????????????? | | #### ########## H;;#####][*##???????????????? | | #### ###########% ##u #=%!##???????????????? | | #### ##??????### ## ??? #==k##???????????????? | | ??## ##???????## ## ??? # [%##???????????????? | | ??## ##???????## ##???? # =[ ???????????????? | | ??## ##???????##^ ##???? + ???????????????? | | ??## ##???????## ##???? # #????????????? | | ??## ##???????## ##???? # #####????????????? | | ??## ##???????# #???? # #####????????????? | | ??## ##???????? # ??? # ##???????????????? | | ??## ##??????? # ????? ##???????????????? | | ??## ##??????? # ????? ##???????????????? | | #?## ##?????? = # ????? ##???????????????? | | #### ### #######????? ???????????????? | | g ????? ????????????????? | | ????????????? ?????????????????? | | ?????????????????????????????????? | | ############+????????????????????????????????????? | | #########????????????????????????????????????????? | | #???????????????????????????????????????? | | """ """ #???????????????????????????????????????? | | """ """ #???????????????????????????????????????? | +----------------------------------------------------+ Best States ------------- Heat Dissipation 45 Energy Generation 14 Energy Capacity 265 Matter Stores 300 Matter Capacity 300 Sight Range 16 Terrain Scan Density 10 Armor Coverage 375 Evasion (%) 40 Recoil Reduction 10 Item Schematics ----------------- None Robot Schematics ------------------ None Fabricated ------------ Nothing Repaired ---------- Nothing Studied --------- Hover Unit | -9/Materials | Hacked Alien Tech Used ----------------- None Achievements -------------- Deductive Reasoning Challenges ------------ None Game ------ Seed SpacefoldMetaHoverbase Manual? 0 Play Time 00:41:47 Cumulative 18.5 hours Start 2026.04.14 @ 17:00:44 End 2026.04.14 @ 17:42:28 Sessions 1 Manual Loads 0 Difficulty Rogue Special Mode None Game No. 19 Rogue 16 Adventurer 3 Explorer 0 Win Type - Total 1 Types 1/0/0/0/0/0/0/0/0/0 Lore% 19 Gallery% 17 Achievement% 20 Wizard Run 0 Options --------- Layout 1 ASCII 0 Keyboard 0 Movement Mouse Keybinds 0 Fullscreen 1 Font 32/SmallcapsGlow Map View 50x35 Zoom Use 0% Tactical HUD 1 Map Filters NONE Filters NONE Steam 1 RUN: b70bebf5-18ff-46d9-b857-71396a43e9ed